bitfinex-derivatives/quotes_BTCF0:USTF0_20250728
["timestamp","ask_amount","ask_price","bid_price","bid_amount"]
[1753705993352,0.84568378,119060.0,119050.0,0.2099591]
[1753705993555,0.84568378,119060.0,119050.0,0.23108654]
[1753705993556,0.67771788,119060.0,119050.0,0.23108654]
[1753705994049,0.84568378,119060.0,119050.0,0.23108654]
[1753705994651,0.90614462,119060.0,119050.0,0.2099591]
[1753705994852,0.73817872,119060.0,119050.0,0.2099591]
[1753705995152,0.73817872,119060.0,119050.0,0.2878891]
[1753705995450,0.40246906,119060.0,119050.0,0.75091876]
[1753705995651,0.34200822,119060.0,119050.0,0.4464391]
[1753705995850,0.34200822,119060.0,119050.0,0.4152091]
[1753705996051,0.67771788,119060.0,119050.0,0.4152091]
[1753705999953,0.67771788,119060.0,119050.0,0.4464391]
[1753706000260,0.14197822,119060.0,119050.0,0.78214876]
[1753706000564,0.01897822,119060.0,119050.0,0.97128901]
[1753706000863,0.01897822,119060.0,119050.0,0.99391848]
[1753706002057,0.01897822,119060.0,119050.0,1.26341848]
[1753706002261,2e-08,119060.0,119050.0,1.24078901]
[1753706002462,2e-08,119060.0,119050.0,1.26340396]
[1753706003767,2e-08,119060.0,119050.0,1.09541196]
[1753706004162,0.31322,119080.0,119070.0,0.3647517]
[1753706004471,0.31322,119080.0,119070.0,0.75283961]
[1753706004767,0.31322,119080.0,119070.0,0.41712995]
[1753706005563,0.31322,119080.0,119070.0,0.42112995]
[1753706007464,0.31322,119080.0,119070.0,0.42412995]
[1753706008467,0.31322,119080.0,119070.0,0.39289995]
[1753706008868,0.31322,119080.0,119070.0,0.400439]
[1753706010260,0.31322,119080.0,119070.0,0.37929075]
[1753706010561,0.31322,119080.0,119070.0,0.41052075]
[1753706012376,0.64892966,119080.0,119070.0,0.3717517]
[1753706012570,0.64892966,119080.0,119070.0,0.1749517]
[1753706012571,1.15257682,119080.0,119070.0,0.1749517]
[1753706012769,1.82137682,119080.0,119070.0,0.1749516]
[1753706013072,0.4811716,119070.0,119060.0,0.1679541]
[1753706013267,0.4811857,119060.0,119050.0,0.2519562]
[1753706013569,1.31772966,119060.0,119050.0,0.2519562]
[1753706014373,1.33276437,119060.0,119050.0,0.2519562]
[1753706014573,0.66396437,119060.0,119050.0,0.4105662]
[1753706014775,1.33276437,119060.0,119050.0,0.4669562]
[1753706014972,1.33376437,119060.0,119050.0,0.4669562]
[1753706015168,0.06329471,119060.0,119050.0,0.85502425]
[1753706015371,0.10713471,119060.0,119050.0,0.85502425]
[1753706015672,0.33325471,119060.0,119050.0,0.51931459]
[1753706018277,0.02003471,119060.0,119050.0,0.85502425]
[1753706018477,0.06729471,119060.0,119050.0,0.85502425]
[1753706019869,1e-08,119060.0,119050.0,1.02301625]
[1753706020170,1e-08,119060.0,119050.0,1.0456312]
[1753706021976,1e-08,119060.0,119050.0,0.8776392]
[1753706022178,1e-08,119060.0,119050.0,1.0456312]
[1753706022875,1e-08,119060.0,119050.0,1.7145512]
[1753706023177,0.26596,119080.0,119070.0,0.2839317]
[1753706023379,0.26596,119080.0,119070.0,1.43405136]
[1753706024375,0.26596,119080.0,119070.0,1.43705136]
[1753706024776,0.26596,119080.0,119070.0,1.44305136]
[1753706024976,0.31322,119080.0,119070.0,1.46423852]
[1753706025674,0.31322,119080.0,119070.0,1.12852886]
[1753706027087,0.31322,119080.0,119070.0,1.1073417]
[1753706027486,0.31322,119080.0,119070.0,1.12853435]
[1753706028274,0.40326687,119090.0,119080.0,0.1679376]
[1753706028479,0.64892966,119090.0,119080.0,0.27041025]
[1753706028788,0.64892966,119090.0,119080.0,0.45064025]
[1753706029587,0.31322,119090.0,119080.0,0.45064025]
[1753706029776,0.31322,119090.0,119080.0,0.45364025]
[1753706030180,0.31322,119090.0,119080.0,0.45564025]
[1753706031875,0.32819773,119090.0,119080.0,0.45564025]
[1753706032187,0.32819773,119090.0,119080.0,0.79134991]
[1753706033284,0.32819773,119090.0,119080.0,0.45564025]
[1753706034585,0.32819773,119090.0,119080.0,0.4344476]
[1753706040399,0.66390739,119090.0,119080.0,0.4344476]
[1753706040793,0.66390739,119090.0,119080.0,1.1031676]
[1753706041596,0.66390739,119090.0,119080.0,1.0349676]
[1753706041797,0.66702739,119090.0,119080.0,0.22577535]
[1753706041986,0.66702739,119090.0,119080.0,0.19411535]
[1753706042292,0.83495089,119090.0,119080.0,0.1729376]
[1753706042591,0.4771076,119080.0,119070.0,0.2938975]
[1753706042787,1.83222465,119080.0,119070.0,0.2519107]
[1753706043193,1.49651499,119080.0,119070.0,0.2519107]
[1753706043798,1.49651499,119080.0,119070.0,0.2549107]
[1753706043992,1.49651499,119080.0,119070.0,0.2589107]
[1753706044394,1.83222465,119080.0,119070.0,0.2589107]
[1753706044993,1.83222465,119080.0,119070.0,0.28011546]
[1753706048399,1.83222465,119080.0,119070.0,0.2589107]
[1753706055403,1.83222465,119080.0,119070.0,0.28010578]
[1753706055604,1.49651499,119080.0,119070.0,0.28010578]
[1753706058700,1.83222465,119080.0,119070.0,0.2589107]
[1753706060002,1.83222465,119080.0,119070.0,0.2169252]
[1753706063913,1.83222465,119080.0,119070.0,0.1749404]
[1753706064113,1.83222465,119080.0,119070.0,0.007]
[1753706064309,1.83222465,119080.0,119070.0,0.1749517]
[1753706064906,1.83222465,119080.0,119070.0,0.007]
[1753706066616,0.2898117,119070.0,119060.0,0.2519375]
[1753706066806,0.82825909,119070.0,119060.0,0.2519375]
[1753706067115,0.82825909,119070.0,119060.0,0.2099463]
[1753706068011,0.82925909,119070.0,119060.0,0.2099463]
[1753706068212,0.83025909,119070.0,119060.0,0.2099463]
[1753706068512,0.83025909,119070.0,119060.0,0.23113346]
[1753706068712,0.83025909,119070.0,119060.0,0.31346346]
[1753706068911,0.83025909,119070.0,119060.0,0.47343346]
[1753706069610,0.83025909,119070.0,119060.0,0.53906346]
[1753706070418,0.83805925,119070.0,119060.0,0.53906346]
[1753706071817,0.83805925,119070.0,119060.0,0.5178763]
[1753706072115,0.1679657,119060.0,119050.0,0.3720175]
[1753706072319,1.49703309,119060.0,119050.0,0.4942575]
[1753706072520,1.49703309,119060.0,119050.0,0.5598875]
[1753706073824,1.50103309,119060.0,119050.0,0.5598875]
[1753706074626,1.50803309,119060.0,119050.0,0.5598875]
[1753706075028,1.50803309,119060.0,119050.0,0.5178931]
[1753706075517,0.4775999,119050.0,119040.0,0.2099805]
[1753706075719,0.82828729,119050.0,119040.0,0.2311916]
[1753706075917,0.82828729,119050.0,119040.0,0.2923105]
[1753706076218,0.82828729,119050.0,119040.0,0.4123705]
[1753706076808,0.83128729,119050.0,119040.0,0.4123705]
[1753706077722,0.83728729,119050.0,119040.0,0.4123705]
[1753706078319,0.83728729,119050.0,119040.0,0.3639605]
[1753706078517,0.50157763,119050.0,119040.0,0.4123705]
[1753706078720,0.83728729,119050.0,119040.0,0.4522805]
[1753706079021,0.83728729,119050.0,119040.0,0.5179105]
[1753706081913,0.66930739,119050.0,119040.0,0.53911387]
[1753706082119,0.69277773,119050.0,119040.0,0.53911387]
[1753706082314,0.02397773,119050.0,119040.0,0.87482353]
[1753706094625,0.02397773,119050.0,119040.0,0.89743848]
[1753706095724,0.02397773,119050.0,119040.0,0.87482353]
[1753706096420,0.02397773,119050.0,119040.0,0.89743965]
[1753706100534,0.01597773,119050.0,119040.0,1.06543964]
[1753706100735,1.18192966,119080.0,119070.0,0.4728417]
[1753706100926,1.18192966,119080.0,119070.0,0.49404507]
[1753706101934,1.18192966,119080.0,119070.0,0.49504507]
[1753706102530,1.18192966,119080.0,119070.0,0.4738417]
[1753706102735,1.18192966,119080.0,119070.0,0.4748417]
[1753706104438,0.63494966,119080.0,119070.0,0.4748417]
[1753706108636,0.63494966,119080.0,119070.0,0.4961078]
[1753706108831,0.63494966,119080.0,119070.0,0.4748417]
[1753706109029,0.63494966,119080.0,119070.0,0.49611031]
[1753706109731,0.63494966,119080.0,119070.0,0.4748417]
[1753706110542,0.45744966,119080.0,119070.0,0.4748417]
[1753706110744,0.63494966,119080.0,119070.0,0.4748417]
[1753706110936,0.63494966,119080.0,119070.0,0.49611102]
[1753706112643,0.6498965,119080.0,119070.0,0.49611102]
[1753706113937,1.15354376,119080.0,119070.0,0.4106817]
[1753706114142,1.15354376,119080.0,119070.0,0.1699517]
[1753706114530,1.32150376,119080.0,119070.0,0.002]
[1753706114733,0.4672058,119060.0,119050.0,0.2519554]
[1753706114946,1.4864623,119060.0,119050.0,0.27323555]
[1753706115834,1.4864623,119060.0,119050.0,0.23124085]
[1753706116034,1.4894623,119060.0,119050.0,0.23124085]
[1753706116436,1.4904623,119060.0,119050.0,0.23124085]
[1753706116745,1.4904623,119060.0,119050.0,0.2099607]
[1753706118044,1.4904623,119060.0,119040.0,0.0839936]
[1753706118045,0.4672199,119050.0,119040.0,0.251977]
[1753706118241,0.8178764,119050.0,119040.0,0.251977]
[1753706118845,0.80292956,119050.0,119040.0,0.251977]
[1753706119043,0.81787624,119050.0,119040.0,0.251977]
[1753706119238,0.81887624,119050.0,119040.0,0.251977]
[1753706119744,0.81987624,119050.0,119040.0,0.251977]
[1753706122448,1.48851634,119050.0,119040.0,0.56792331]
[1753706123155,1.48851634,119050.0,119040.0,0.50964331]
[1753706124457,1.48851634,119050.0,119040.0,0.44043331]
[1753706124847,1.48851634,119050.0,119040.0,0.39367331]
[1753706126457,1.48851634,119050.0,119040.0,0.30967971]
[1753706126652,1.48851634,119050.0,119040.0,0.26910971]
[1753706127355,1.48851634,119050.0,119040.0,0.02126631]
[1753706127658,1.48851634,119050.0,119010.0,0.14318874]
[1753706127659,0.1208,119020.0,119010.0,0.56746691]
[1753706127856,0.47145634,119020.0,119010.0,0.56612683]
[1753706128360,0.64905634,119020.0,119010.0,0.56612683]
[1753706128959,0.65105634,119020.0,119010.0,0.56612683]
[1753706129459,0.65305634,119020.0,119010.0,0.56612683]
[1753706130255,0.82107864,119020.0,119010.0,0.5448392]
[1753706130448,0.88675295,119020.0,119010.0,0.2865735]
[1753706130652,0.4664364,119010.0,119000.0,0.07969]
[1753706130853,1.48577274,119010.0,119000.0,0.2477405]
[1753706131060,1.48577274,119010.0,119000.0,0.1680505]
[1753706132358,0.4664505,119000.0,118990.0,0.5286183]
[1753706132662,1.1528165,119000.0,118990.0,0.2520822]
[1753706133761,0.81910684,119000.0,118990.0,0.2520822]
[1753706134763,0.82110684,119000.0,118990.0,0.2520822]
[1753706135161,1.1568165,119000.0,118990.0,0.2520822]
[1753706136264,0.82110694,119000.0,118990.0,0.4477422]
[1753706136561,1.1568166,119000.0,118990.0,0.2520822]
[1753706137960,0.82110694,119000.0,118990.0,0.2838122]
[1753706138169,0.82110694,119000.0,118990.0,0.4477422]
[1753706141364,0.82110694,119000.0,118990.0,0.4866022]
[1753706142265,0.82110694,119000.0,118990.0,0.5448822]
[1753706143763,1.1568166,119000.0,118990.0,0.5448822]
[1753706149267,0.13974668,119000.0,118990.0,0.3226722]
[1753706149565,1.48998694,119000.0,118990.0,0.5448822]
[1753706150269,1.32193634,119000.0,118990.0,0.5448822]
[1753706150471,0.65305634,119000.0,118990.0,0.5448822]
[1753706150773,1.02353634,119000.0,118990.0,0.5448822]
[1753706150964,1.20113634,119000.0,118990.0,0.5448822]
[1753706153268,1.20113634,119000.0,118990.0,0.56615186]
[1753706155062,1.20113634,119000.0,118990.0,0.5448822]
[1753706155367,1.20113634,119000.0,118990.0,0.56616894]
[1753706156369,1.20113634,119000.0,118990.0,0.5448822]
[1753706157263,1.36918694,119000.0,118990.0,0.56619533]
[1753706157459,1.20113634,119000.0,118990.0,0.56619533]
[1753706157663,1.20113634,119000.0,118990.0,0.5448822]
[1753706158272,1.36918694,119000.0,118990.0,0.56620905]
[1753706158572,1.20113634,119000.0,118990.0,0.56620905]
[1753706162872,0.35465634,119000.0,118990.0,0.56620905]
[1753706163091,0.06082668,119000.0,118990.0,0.90191871]
[1753706163263,0.01894668,119000.0,118990.0,1.09261842]
[1753706163568,6e-08,119000.0,118990.0,1.34266883]
[1753706163874,0.5696281,119030.0,119020.0,0.4663923]
[1753706163875,0.35440844,119030.0,119020.0,0.4663923]
[1753706164072,0.35440844,119030.0,119020.0,0.44667742]
[1753706164673,0.29396,119030.0,119020.0,0.41934048]
[1753706164867,0.36952055,119030.0,119020.0,0.41934048]
[1753706165273,0.29396,119030.0,119020.0,0.41934048]
[1753706165477,0.35441422,119030.0,119020.0,0.41934048]
[1753706166075,0.29396,119030.0,119020.0,0.41934048]
[1753706166274,0.29396,119030.0,119020.0,0.42731799]
[1753706166877,0.36203725,119030.0,119020.0,0.42731799]
[1753706167680,0.36203725,119030.0,119020.0,0.41934048]
[1753706168579,0.69774691,119030.0,119020.0,0.41934048]
[1753706174583,0.99176721,119030.0,119020.0,0.1680223]
[1753706174785,0.94976231,119030.0,119020.0,0.1680223]
[1753706174984,0.90775801,119030.0,119020.0,0.1680223]
[1753706175678,0.92257586,119030.0,119020.0,0.1680223]
[1753706175984,0.88057296,119030.0,119020.0,0.38929499]
[1753706176184,0.71256476,119030.0,119020.0,0.38929499]
[1753706176376,0.71256476,119030.0,119020.0,0.42752499]
[1753706176575,0.71256476,119030.0,119020.0,0.48774499]
[1753706177887,0.88057296,119030.0,119020.0,0.48774499]
[1753706178088,0.71256476,119030.0,119020.0,0.4663923]
[1753706178484,0.88057296,119030.0,119020.0,0.4663923]
[1753706180789,0.71256476,119030.0,119020.0,0.4663923]
[1753706181089,0.88057296,119030.0,119020.0,0.4663923]
[1753706182290,0.71256476,119030.0,119020.0,0.4663923]
[1753706183487,1.38124476,119030.0,119020.0,0.4663923]
[1753706183686,0.3768551,119030.0,119020.0,0.4061723]
[1753706183892,0.2033851,119030.0,119020.0,0.4676323]
[1753706184193,0.2033851,119030.0,119020.0,0.48900503]
[1753706184792,0.71211476,119030.0,119020.0,0.48900503]
[1753706185593,0.71511476,119030.0,119020.0,0.48900503]
[1753706188595,0.71511476,119030.0,119020.0,0.42194503]
[1753706188788,0.71511476,119030.0,119020.0,0.48340503]
[1753706191998,0.71511476,119030.0,119020.0,0.30821503]
[1753706192199,0.88312286,119030.0,119020.0,0.18939503]
[1753706192395,0.71511476,119030.0,119020.0,0.18939503]
[1753706193198,0.88312286,119030.0,119020.0,0.18939503]
[1753706193500,0.71511476,119030.0,119020.0,0.18939503]
[1753706194494,0.71511476,119030.0,119020.0,0.42062503]
[1753706194695,0.71511476,119030.0,119020.0,0.48208503]
[1753706194902,1.38375476,119030.0,119020.0,0.48208503]
[1753706195601,1.38375476,119030.0,119020.0,0.33503503]
[1753706195906,1.38375476,119030.0,119020.0,0.38061503]
[1753706198004,1.38375476,119030.0,119020.0,0.3592423]
[1753706201698,1.21073476,119030.0,119020.0,0.2013323]
[1753706201906,1.38375476,119030.0,119020.0,0.50477721]
[1753706202401,1.0480451,119030.0,119020.0,0.84048687]
[1753706202606,1.38375476,119030.0,119020.0,0.50477721]
[1753706204508,0.71411476,119030.0,119020.0,0.50477721]
[1753706204700,0.71411476,119030.0,119020.0,0.48211895]
[1753706206405,0.2053851,119030.0,119020.0,0.81782861]
[1753706206599,0.19577785,119030.0,119020.0,1.48642861]
[1753706206805,0.01681785,119030.0,119020.0,1.48642861]
[1753706209712,0.01681785,119030.0,119020.0,1.15071895]
[1753706209914,0.05837785,119030.0,119020.0,1.15071895]
[1753706210313,0.26472785,119030.0,119020.0,1.48642861]
[1753706211013,5e-08,119030.0,119020.0,1.92711887]
[1753706211205,5e-08,119030.0,119020.0,1.95728915]
[1753706211510,5e-08,119030.0,119020.0,1.92711887]
[1753706211711,5e-08,119030.0,119020.0,1.95728915]
[1753706212114,5e-08,119030.0,119020.0,1.92711887]
[1753706213113,5e-08,119030.0,119020.0,1.67711887]
[1753706214608,5e-08,119030.0,119020.0,1.68463089]
[1753706215010,5e-08,119030.0,119020.0,1.95413089]
[1753706215512,0.58369016,119060.0,119050.0,0.16798]
[1753706215715,0.58369016,119060.0,119050.0,0.47812665]
[1753706215716,0.63139966,119060.0,119050.0,0.47812665]
[1753706216920,0.70006694,119060.0,119050.0,0.48212665]
[1753706217318,0.70006694,119060.0,119050.0,0.48512665]
[1753706218421,0.86803284,119060.0,119050.0,0.42846665]
[1753706220316,0.86803284,119060.0,119050.0,0.02840665]
[1753706220619,0.86803284,119060.0,119050.0,0.1749799]
[1753706221119,1.03602484,119060.0,119050.0,0.007]
[1753706221314,0.29569,119040.0,119020.0,0.1572438]
[1753706221623,0.79940786,119030.0,119020.0,0.27346076]
[1753706221820,0.79940786,119030.0,119020.0,0.2520176]
[1753706223030,0.81414811,119030.0,119020.0,0.2520176]
[1753706223228,0.81414811,119030.0,119020.0,0.3672576]
[1753706225325,0.81514811,119030.0,119020.0,0.3672576]
[1753706225726,0.64713991,119030.0,119020.0,0.4443776]
[1753706226116,0.64713991,119030.0,119020.0,0.5010376]
[1753706226529,0.64713991,119030.0,119020.0,0.5407576]
[1753706227031,0.31143025,119030.0,119020.0,0.5407576]
[1753706227227,0.64713991,119030.0,119020.0,0.4840976]
[1753706227427,0.64713991,119030.0,119020.0,0.5407576]
[1753706227935,0.64713991,119030.0,119020.0,0.56220495]
[1753706228321,0.13174025,119030.0,119020.0,0.56220495]
[1753706228526,0.01574025,119030.0,119020.0,1.58901111]
[1753706228725,0.01774025,119030.0,119020.0,1.58901111]
[1753706229434,0.02174025,119030.0,119020.0,1.58901111]
[1753706229632,0.02174025,119030.0,119020.0,1.56639461]
[1753706230824,0.02074025,119030.0,119020.0,1.58901111]
[1753706236128,0.02074025,119030.0,119020.0,1.85851111]
[1753706236335,1.03279728,119060.0,119050.0,0.45672]
[1753706236633,1.36850694,119060.0,119050.0,0.45672]
[1753706236834,0.70006694,119060.0,119050.0,0.45672]
[1753706237436,0.70006694,119060.0,119050.0,0.45872]
[1753706237936,0.36435728,119060.0,119050.0,0.45872]
[1753706238527,0.36435728,119060.0,119050.0,0.46272]
[1753706238732,0.70006694,119060.0,119050.0,0.46272]
[1753706241633,0.63139966,119080.0,119070.0,0.2450718]
[1753706241831,0.63139966,119080.0,119070.0,0.4580518]
[1753706242036,1.29979966,119080.0,119070.0,0.42153213]
[1753706242236,1.29979966,119080.0,119070.0,0.1679518]
[1753706242836,1.36684257,119080.0,119070.0,0.1679518]
[1753706243537,1.36684257,119080.0,119070.0,0.1699518]
[1753706244138,1.36684257,119080.0,119070.0,0.1709518]
[1753706244740,1.53478017,119080.0,119070.0,0.1709518]
[1753706245139,1.87048983,119080.0,119070.0,0.1709517]
[1753706248238,1.88511335,119080.0,119070.0,0.1709517]
[1753706249644,1.88511264,119080.0,119070.0,0.1709517]
[1753706250347,1.54940308,119080.0,119070.0,0.1709517]
[1753706251347,1.54940308,119080.0,119070.0,0.3687817]
[1753706252447,1.54940308,119080.0,119070.0,0.1709517]
[1753706252742,1.54940308,119080.0,119070.0,0.4072017]
[1753706252940,1.38138538,119080.0,119070.0,0.4652217]
[1753706253244,1.54932298,119080.0,119070.0,0.4652217]
[1753706254643,0.66184538,119080.0,119070.0,0.4652217]
[1753706254949,1.04070572,119080.0,119070.0,0.4652217]
[1753706255446,0.01462281,119080.0,119070.0,0.80093136]
[1753706255647,0.01462281,119080.0,119070.0,0.82250338]
[1753706255846,0.01462281,119080.0,119070.0,0.48679372]
[1753706256046,0.22881281,119080.0,119070.0,0.48679372]
[1753706256447,0.22881281,119080.0,119070.0,0.82150338]
[1753706256650,0.01462281,119080.0,119070.0,0.82450338]
[1753706257647,0.01462281,119080.0,119070.0,0.82650338]
[1753706257848,0.05409281,119080.0,119070.0,0.82650338]
[1753706258048,0.26165281,119080.0,119070.0,0.82650338]
[1753706259445,0.26165281,119080.0,119070.0,0.49079372]
[1753706260151,0.26165281,119080.0,119070.0,0.82650338]
[1753706262455,0.30566281,119080.0,119070.0,0.49079372]
[1753706262650,0.30566281,119080.0,119070.0,0.4692217]
[1753706263055,0.64137247,119080.0,119070.0,0.4112017]
[1753706263650,0.64137247,119080.0,119070.0,0.4692217]
[1753706264850,0.30566281,119080.0,119070.0,0.49079623]
[1753706265057,0.30566281,119080.0,119070.0,0.82650589]
[1753706265264,0.64137247,119080.0,119070.0,0.49079623]
[1753706267357,0.30566281,119080.0,119070.0,0.49079623]
[1753706268262,0.01462281,119080.0,119070.0,0.82650589]
[1753706268461,0.01462281,119080.0,119070.0,0.84908296]
[1753706270357,0.08693281,119080.0,119070.0,0.84908296]
[1753706270659,0.30566281,119080.0,119070.0,0.84908296]
[1753706271154,0.30566281,119080.0,119070.0,0.5133733]
[1753706273763,0.30566281,119080.0,119070.0,0.84908296]
[1753706275265,0.59177247,119080.0,119070.0,0.5133733]
[1753706275575,0.97356213,119080.0,119070.0,0.19652623]
[1753706275767,1.14149993,119080.0,119070.0,0.1749519]
[1753706275966,0.97356213,119080.0,119070.0,0.1749519]
[1753706277259,0.63785247,119080.0,119070.0,0.1749519]
[1753706280370,0.97356213,119080.0,119070.0,0.1749519]
[1753706280668,1.14149993,119080.0,119070.0,0.1749519]
[1753706280870,0.97356213,119080.0,119070.0,0.1749519]
[1753706281573,1.14150003,119080.0,119070.0,0.1749519]
[1753706281772,1.81078003,119080.0,119070.0,0.19653057]
[1753706283769,0.63785247,119080.0,119070.0,0.47730057]
[1753706285672,0.30214281,119080.0,119070.0,0.47730057]
[1753706285871,0.30214281,119080.0,119070.0,0.81301023]
[1753706286074,0.05138281,119080.0,119070.0,0.81301023]
[1753706286274,0.25455281,119080.0,119070.0,0.79143156]
[1753706286577,0.29810281,119080.0,119070.0,0.81300395]
[1753706287475,0.01462281,119080.0,119070.0,0.81300395]
[1753706288176,0.05138281,119080.0,119070.0,0.81300395]
[1753706288578,0.25455281,119080.0,119070.0,0.81300395]
[1753706288774,0.29810281,119080.0,119070.0,0.47729429]
[1753706292376,0.29810281,119080.0,119070.0,0.81300395]
[1753706292879,0.29810281,119080.0,119070.0,0.47729429]
[1753706294271,0.63381247,119080.0,119070.0,0.47729429]
[1753706295779,0.29810281,119080.0,119070.0,0.47729429]
[1753706296681,0.63381247,119080.0,119070.0,0.2518219]
[1753706296867,0.63381247,119080.0,119070.0,0.1749519]
[1753706297477,0.63381247,119080.0,119070.0,0.3636619]
[1753706298088,0.63381247,119080.0,119070.0,0.4557219]
[1753706304889,0.63381247,119080.0,119070.0,0.47730552]
[1753706315699,0.63381247,119080.0,119070.0,0.42176552]
[1753706316491,0.96952213,119080.0,119070.0,0.19653552]
[1753706316699,0.9695195,119080.0,119070.0,0.1749519]
[1753706319199,1.1374574,119080.0,119070.0,0.1749519]
[1753706320099,1.3054174,119080.0,119070.0,0.19655182]
[1753706320298,1.3054174,119080.0,119070.0,0.1749519]
[1753706320695,1.1374574,119080.0,119070.0,0.1749519]
[1753706321095,1.1374574,119080.0,119070.0,0.19655143]
[1753706321505,0.9695195,119080.0,119070.0,0.19655143]
[1753706322304,1.1374574,119080.0,119070.0,0.19655143]
[1753706324206,0.9695195,119080.0,119070.0,0.19655143]
[1753706324507,1.30212984,119080.0,119070.0,0.22864143]
[1753706324707,1.30212984,119080.0,119070.0,0.47578143]
[1753706326600,1.13092984,119080.0,119070.0,0.4541819]
[1753706326907,1.29784984,119080.0,119070.0,0.4541819]
[1753706327308,0.96214018,119080.0,119070.0,0.4541819]
[1753706327608,0.29382018,119080.0,119070.0,0.4541819]
[1753706327909,0.62952984,119080.0,119070.0,0.47577842]
[1753706328410,1.1331774,119080.0,119070.0,0.19654842]
[1753706328707,1.1331774,119080.0,119070.0,0.1749519]
[1753706329601,1.19363162,119080.0,119070.0,0.1749519]
[1753706331306,1.1331774,119080.0,119070.0,0.1749519]
[1753706332812,1.19363162,119080.0,119070.0,0.1749519]
[1753706334110,1.1331774,119080.0,119070.0,0.19654963]
[1753706334806,0.9652395,119080.0,119070.0,0.19654963]
[1753706335011,1.1331775,119080.0,119070.0,0.19654963]
[1753706341419,1.19363172,119080.0,119070.0,0.1749519]
[1753706344821,1.20873805,119080.0,119070.0,0.1749519]
[1753706345420,1.20873805,119080.0,119070.0,0.12954695]
[1753706346917,1.20873805,119080.0,119070.0,0.22317094]
[1753706347116,1.29788984,119080.0,119070.0,0.42470094]
[1753706347315,1.29788984,119080.0,119070.0,0.40306695]
[1753706348112,0.62952984,119080.0,119070.0,0.40306695]
[1753706348317,1.29788984,119080.0,119070.0,0.40306695]
[1753706351727,1.35838977,119080.0,119070.0,0.40306695]
[1753706352226,0.29100018,119080.0,119070.0,0.40306695]
[1753706352625,0.62670984,119080.0,119070.0,0.40306695]
[1753706354330,0.08312018,119080.0,119070.0,0.40306695]
[1753706354824,0.08312018,119080.0,119070.0,0.4247135]
[1753706355025,0.13547018,119080.0,119070.0,0.4247135]
[1753706355227,0.24842018,119080.0,119070.0,0.4247135]
[1753706356528,0.29100018,119080.0,119070.0,0.4247135]
[1753706357325,0.12570018,119080.0,119070.0,0.4247135]
[1753706357530,0.05141018,119080.0,119070.0,0.4247135]
[1753706357732,0.58412984,119080.0,119070.0,0.4247135]
[1753706357932,0.62670984,119080.0,119070.0,0.4247135]
[1753706359627,0.01462018,119080.0,119070.0,0.4247135]
[1753706360025,0.35032984,119080.0,119070.0,0.4247135]
[1753706360832,0.38711984,119080.0,119070.0,0.4247135]
[1753706361734,0.47117984,119080.0,119070.0,0.4247135]
[1753706362032,0.57893984,119080.0,119070.0,0.4247135]
[1753706362429,0.03679,119080.0,119070.0,0.4247135]
[1753706362635,0.56784966,119090.0,119080.0,0.2791181]
[1753706362835,0.60500966,119090.0,119080.0,0.46305465]
[1753706364730,0.60500966,119090.0,119080.0,0.46505465]
[1753706366737,0.60500966,119090.0,119080.0,0.4434081]
[1753706366926,0.619878,119100.0,119090.0,0.3894541]
[1753706367242,0.672588,119100.0,119090.0,0.4413941]
[1753706368525,0.619878,119100.0,119090.0,0.3894541]
[1753706368725,0.672588,119100.0,119090.0,0.4413941]
[1753706373043,0.672588,119100.0,119090.0,0.46327581]
[1753706374438,0.68687198,119100.0,119090.0,0.46327581]
[1753706377539,0.68687198,119100.0,119090.0,0.4413941]
[1753706381247,0.68687198,119100.0,119090.0,0.1679241]
[1753706381649,0.85478198,119100.0,119090.0,0.1679241]
[1753706381845,1.35842764,119100.0,119090.0,0.1179241]
[1753706382150,0.4286841,119090.0,119080.0,0.3358685]
[1753706382349,1.44687774,119090.0,119080.0,0.3358685]
[1753706383142,1.23287364,119090.0,119080.0,0.5573985]
[1753706383350,0.56467364,119090.0,119080.0,0.63123812]
[1753706383647,0.08297398,119090.0,119080.0,0.63123812]
[1753706383843,0.08297398,119090.0,119080.0,0.6093385]
[1753706383844,0.22896398,119090.0,119080.0,0.6093385]
[1753706384144,0.56467364,119090.0,119080.0,0.6103385]
[1753706384744,0.56467364,119090.0,119080.0,0.6113385]
[1753706385744,0.62517357,119090.0,119080.0,0.6113385]
[1753706386044,0.56467364,119090.0,119080.0,0.63323887]
[1753706386239,0.22896398,119090.0,119080.0,0.63323887]
[1753706386643,0.05144398,119090.0,119080.0,0.63323887]
[1753706386940,0.05144398,119090.0,119080.0,0.96894853]
[1753706387746,0.05144398,119090.0,119080.0,0.63323887]
[1753706387949,0.05144398,119090.0,119080.0,1.30147887]
[1753706388149,0.01428398,119090.0,119080.0,1.30147887]
[1753706388449,0.29655606,119100.0,119090.0,0.4413941]
[1753706388847,0.63226572,119100.0,119090.0,0.4413941]
[1753706389050,0.67834572,119100.0,119090.0,0.4413941]
[1753706390347,0.67834572,119100.0,119090.0,0.46330267]
[1753706396046,0.67834572,119100.0,119090.0,0.4413941]
[1753706397651,0.67834572,119100.0,119090.0,0.2484041]
[1753706397953,0.67834572,119100.0,119090.0,0.3903741]
[1753706398452,0.67834572,119100.0,119090.0,0.4451641]
[1753706399153,0.67834572,119100.0,119090.0,0.1679241]
[1753706399368,0.84625572,119100.0,119090.0,0.18983216]
[1753706399757,0.84625572,119100.0,119090.0,0.23623216]
[1753706400258,0.67834572,119100.0,119090.0,0.23623216]
[1753706400455,0.84625572,119100.0,119090.0,0.23623216]
[1753706400649,0.67834572,119100.0,119090.0,0.23623216]
[1753706401158,0.84625562,119100.0,119090.0,0.23623216]
[1753706401757,0.67834572,119100.0,119090.0,0.23623216]
[1753706402150,0.67834572,119100.0,119090.0,0.40832216]
[1753706402461,0.67834572,119100.0,119090.0,0.46311216]
[1753706405261,1.34698572,119100.0,119090.0,0.46311216]
[1753706405562,0.63226572,119100.0,119090.0,0.46311216]
[1753706405765,1.30086572,119100.0,119090.0,0.46311216]
[1753706406354,1.30086572,119100.0,119090.0,0.4412041]
[1753706406555,1.34793572,119100.0,119090.0,0.4412041]
[1753706409667,1.51584572,119100.0,119090.0,0.4412041]
[1753706409870,1.51584572,119100.0,119090.0,0.3864141]
[1753706410073,1.34793572,119100.0,119090.0,0.3864141]
[1753706411067,1.40843565,119100.0,119090.0,0.3864141]
[1753706411961,1.40843565,119100.0,119090.0,0.4412041]
[1753706412561,0.69276565,119100.0,119090.0,0.4412041]
[1753706412762,1.30050572,119100.0,119090.0,0.46308469]
[1753706413162,0.63226572,119100.0,119090.0,0.46308469]
[1753706413564,0.67933572,119100.0,119090.0,0.46308469]
[1753706419477,0.15056606,119100.0,119090.0,0.79879435]
[1753706419775,0.15056606,119100.0,119090.0,0.46308469]
[1753706420071,0.25682606,119100.0,119090.0,0.46308469]
[1753706420274,0.30082606,119100.0,119090.0,0.46308469]
[1753706420870,0.63653572,119100.0,119090.0,0.46408469]
[1753706421172,0.63653572,119100.0,119090.0,0.46608469]
[1753706422676,0.30082606,119100.0,119090.0,0.46608469]
[1753706422972,0.30082606,119100.0,119090.0,0.47433288]
[1753706424475,0.63653572,119100.0,119090.0,0.47433288]